fUSD/lending_fUSD_20240121
["ID","MTS","AMOUNT","RATE_DAILY","PERIOD"]
[312384945,1705851038244,-186.28,0.00020404,10]
[312384946,1705851038253,-164.84860372,0.00020434,2]
[312384947,1705851038263,-150.18,0.00020465,2]
[312384948,1705851038272,-560.25023134,0.00020466,2]
[312384950,1705851038281,-449.00649818,0.00020466,2]
[312384952,1705851038291,-150.27,0.00020509,2]
[312384954,1705851038300,-182.77,0.0002051,2]
[312384955,1705851038309,-150.18,0.00020529,2]
[312384957,1705851038318,-1695.0,0.00020548,2]
[312384959,1705851038327,-150.18,0.00020594,2]
[312384961,1705851038336,-150.18,0.00020658,2]
[312384963,1705851038345,-150.0,0.00020688,2]
[312384965,1705851038354,-233.43,0.00020694,2]
[312384967,1705851038363,-156.20564352,0.00020698,2]
[312384969,1705851038373,-150.27,0.00020713,2]
[312384971,1705851038382,-233.43,0.00020716,2]
[312384972,1705851038391,-150.18,0.00020722,2]
[312384974,1705851038400,-233.43,0.00020737,2]
[312384976,1705851038410,-233.43,0.00020759,2]
[312384978,1705851038419,-1208.62,0.00020761,2]
[312384980,1705851038428,-233.43,0.00020781,2]
[312384982,1705851038437,-150.18,0.00020787,2]
[312384984,1705851038446,-200.0,0.00020789,2]
[312384986,1705851038456,-233.43,0.00020803,2]
[312384988,1705851038465,-233.43,0.00020825,2]
[312384990,1705851038474,-169.2,0.0002084,2]
[312384991,1705851038484,-233.43,0.00020846,2]
[312384993,1705851038493,-233.43,0.00020868,2]
[312384995,1705851038503,-233.43,0.0002089,2]
[312384997,1705851038512,-233.43,0.00020912,2]
[312384999,1705851038521,-150.27,0.00020916,2]
[312385001,1705851038530,-164.84860372,0.00020927,2]
[312385003,1705851038540,-233.43,0.00020933,2]
[312385005,1705851038552,-233.43,0.00020955,2]
[312385007,1705851038561,-157.39,0.00020975,2]
[312385008,1705851038570,-233.43,0.00020977,2]
[312385010,1705851038580,-233.43,0.00020999,2]
[312385013,1705851038591,-733.66243869,0.00021,2]
[312385014,1705851038601,-233.43,0.00021021,2]
[312385016,1705851038610,-186.28,0.0002103,10]
[312385018,1705851038620,-233.43,0.00021042,2]
[312385020,1705851038630,-206.0,0.00021058,2]
[312385022,1705851038641,-233.43,0.00021064,2]
[312385024,1705851038650,-233.43,0.00021086,2]
[312385026,1705851038659,-157.31,0.00021102,2]
[312385028,1705851038669,-233.43,0.00021108,2]
[312385030,1705851038678,-150.27,0.0002112,2]
[312385032,1705851038687,-150.27,0.00021324,2]
[312385033,1705851038696,-164.84860372,0.0002142,2]
[312385035,1705851038705,-150.27,0.00021527,2]
[312385037,1705851038714,-800.0,0.00021547,2]
[312385039,1705851038724,-492.83979718,0.00021627,2]
[312385041,1705851038734,-538.7113452,0.00021627,2]
[312385043,1705851038743,-7725.49421759,0.00021627,2]
[312385045,1705851038751,-544.52,0.00021644,2]
[312385046,1705851038761,-150.27,0.00021731,2]
[312385048,1705851038770,-300.0,0.00021748,2]
[312385050,1705851038779,-254.9356903,0.00021799,2]
[312385052,1705851038789,-283.0,0.00021811,2]
[312385054,1705851038798,-900.34249705,0.00021845,2]
[312385056,1705851038807,-1812.46036172,0.00021845,2]
[312385058,1705851038816,-487.16063615,0.00021845,2]
[312385060,1705851038826,-1050.58506121,0.00021845,2]
[312385062,1705851038835,-2020.53490244,0.00021845,2]
[312385064,1705851038845,-4247.28131875,0.00021845,2]
[312385066,1705851038862,-300.68898993,0.00021845,2]
[312385068,1705851038871,-10527.95115229,0.00021847,2]
[312385070,1705851038884,-1000.0,0.00021899,2]
[312385072,1705851038898,-250.0,0.000219,2]
[312385075,1705851038908,-340.01072623,0.000219,2]
[312385076,1705851038918,-164.84860372,0.00021913,2]
[312385077,1705851038927,-150.27,0.00021935,2]
[312385078,1705851038936,-207.89868806,0.00022,2]
[312385079,1705851038946,-368.19166572,0.00022,2]
[312385080,1705851038955,-150.0,0.00022,2]
[312385081,1705851038964,-500.0,0.00022,2]
[312385082,1705851038973,-254.93569029,0.00022074,2]
[312385083,1705851038982,-622.17405158,0.00022078,2]
[312385084,1705851038991,-420.01569595,0.00022078,2]
[312385085,1705851038999,-157.39,0.00022088,2]
[312385086,1705851039008,-150.27,0.00022138,2]
[312385087,1705851039017,-415.14295,0.00022235,2]
[312385088,1705851039026,-150.27,0.00022342,2]
[312385089,1705851039035,-254.93569029,0.0002235,2]
[312385090,1705851039043,-1208.62,0.00022405,2]
[312385091,1705851039052,-164.84860372,0.00022407,2]
[312385092,1705851039061,-544.52,0.00022445,2]
[312385094,1705851039070,-150.27,0.00022546,2]
[312385095,1705851039079,-254.93569029,0.00022625,2]
[312385097,1705851039089,-150.27,0.0002275,2]
[312385099,1705851039098,-281.28534164,0.00022766,2]
[312385101,1705851039107,-869.57766998,0.00022899,2]
[312385103,1705851039117,-16211.32728311,0.00022899,2]
[312385105,1705851039126,-4945.47,0.00022899,2]
[312385107,1705851039136,-1445.1317,0.000229,2]
[312385109,1705851039146,-821.6326,0.000229,2]
[312385111,1705851039155,-164.84860372,0.000229,2]
[312385113,1705851039164,-509.93267119,0.000229,2]
[312385115,1705851039174,-509.93267119,0.000229,2]
[312385117,1705851039183,-509.93267119,0.000229,2]
[312385119,1705851039193,-509.93267119,0.000229,2]
[312385121,1705851039202,-509.93267119,0.000229,2]
[312385123,1705851039212,-509.93267119,0.000229,2]
[312385125,1705851039222,-509.93267119,0.000229,2]
[312385127,1705851039231,-509.93267119,0.000229,2]
[312385129,1705851039240,-509.93267119,0.000229,2]
[312385131,1705851039249,-509.93267119,0.000229,2]
[312385133,1705851039259,-509.93267119,0.000229,2]
[312385135,1705851039269,-509.93267119,0.000229,2]
[312385137,1705851039279,-509.93267119,0.000229,2]
[312385139,1705851039289,-509.93267119,0.000229,2]
[312385141,1705851039298,-509.93267119,0.000229,2]
[312385143,1705851039307,-509.93267119,0.000229,2]
[312385145,1705851039317,-509.93267119,0.000229,2]
[312385148,1705851039326,-509.93267119,0.000229,2]
[312385150,1705851039335,-151.39793635,0.000229,2]
[312385152,1705851039345,-254.93569029,0.000229,2]
[312385154,1705851039354,-35773.3998,0.000229,2]
[312385156,1705851039363,-1204.2991898,0.000229,2]
[312385158,1705851039373,-150.27,0.00022953,2]
[312385160,1705851039382,-272.87745219,0.00022996,2]
[312385162,1705851039391,-269.92500188,0.00022996,2]
[312385164,1705851039401,-1203.42619613,0.00022996,2]
[312385166,1705851039410,-155.91294937,0.00022996,2]
[312385168,1705851039419,-157.87469733,0.00022996,2]
[312385170,1705851039429,-155.0,0.00022996,2]
[312385172,1705851039438,-389.08953638,0.00022996,2]
[312385174,1705851039447,-33319.92400747,0.00022996,2]
[312385176,1705851039456,-265.56171591,0.00022997,2]
[312385178,1705851039465,-4350.83358686,0.00022997,2]
[312385180,1705851039475,-242.93320349,0.00022998,2]
[312385182,1705851039485,-289.03050661,0.00022998,2]
[312385184,1705851039494,-1852.93487008,0.00022998,2]
[312385186,1705851039503,-766.87003814,0.00022998,2]
[312385188,1705851039513,-387.06249631,0.00022998,2]
[312385190,1705851039522,-2612.407715,0.00022998,2]
[312385192,1705851039532,-376.99778684,0.00022998,2]
[312385194,1705851039542,-1044.24818187,0.00022998,2]
[312385196,1705851039553,-629.04989027,0.00022998,2]
[312385198,1705851039562,-354.6188197,0.00022998,2]
[312385200,1705851039572,-867.3574407,0.00022998,2]
[312385202,1705851039582,-404.41410196,0.00022998,2]
[312385204,1705851039592,-7785.67500435,0.00022998,2]
[312385206,1705851039602,-384.72747359,0.00022998,2]
[312385208,1705851039611,-940.81377552,0.00022998,2]
[312385210,1705851039623,-1061.16567652,0.00022998,2]
[312385212,1705851039633,-940.73042275,0.00022998,2]
[312385214,1705851039643,-286.73899009,0.00022998,2]
[312385216,1705851039653,-555.69003555,0.00022998,2]
[312385218,1705851039663,-1709.69886079,0.00022998,2]
[312385220,1705851039672,-2902.60645691,0.00022998,2]
[312385222,1705851039682,-651.76209495,0.00022998,2]
[312385225,1705851039692,-1045.63403066,0.00022998,2]
[312385227,1705851039701,-970.62715885,0.00022998,2]
[312385229,1705851039713,-1178.56113027,0.00022998,2]
[312385230,1705851039722,-400.0,0.00022998,2]
[312385232,1705851039732,-2947.80727048,0.00022998,2]
[312385234,1705851039741,-3030.69265764,0.00022999,2]
[312385236,1705851039750,-500.0,0.00022999,2]
[312385238,1705851039760,-2060295.30526816,0.00023,3]
[312385241,1705851039770,-2407800.56631374,0.00023,2]
[312385243,1705851039784,-368232.93041353,0.00023,2]
[312385245,1705851039796,-175051.29583934,0.00023,2]
[312385247,1705851039805,-179533.46340474,0.00023,2]
[312385250,1705851039817,-7511.69383817,0.00023,2]
[312385253,1705851039840,-4972.80603193,0.00023,2]
[312385255,1705851039852,-4764.67629109,0.00023,2]
[312385258,1705851039863,-922.76474757,0.00023,2]
[312385260,1705851039874,-2900.0,0.00023,2]
[312385262,1705851039885,-450.0,0.00023,2]
[312385266,1705851039908,-869.96416825,0.00023,2]
[312385269,1705851039932,-2610.74051145,0.00023,2]
[312385271,1705851039943,-1943.29667571,0.00023,2]
[312385448,1705851041548,-253082.09835491,0.00023,2]
[312385450,1705851041562,-71302.67400067,0.00023,2]
[312385454,1705851041580,-509.37786577,0.00023,2]
[312385456,1705851041592,-269.2302333,0.00023,2]
[312385459,1705851041613,-1758.93979561,0.00023,2]
[312385520,1705851042301,-3254.98910633,0.00023,2]
[312385521,1705851042313,-10148.12651512,0.00023,2]
[312385522,1705851042326,-4265.39244857,0.00023,2]
[312385523,1705851042337,-467.17556613,0.00023,2]
[312385524,1705851042357,-340.01072623,0.000224,2]
[312385525,1705851042367,-7594.5510649,0.00023,2]
[312385527,1705851042378,-1030.84,0.00023,2]
[312385700,1705851043349,-604.8212046,0.00022078,3]
[312385703,1705851043361,-1273.08865208,0.00022078,3]
[312385708,1705851043373,-1235.89109909,0.00022078,3]
[312385711,1705851043383,-840.03565432,0.00022899,3]
[312385714,1705851043392,-4655.25986659,0.00023,2]
[312385727,1705851043455,-74521.61188761,0.00023,2]
[312385729,1705851043467,-1644.096,0.00023,2]
[312385730,1705851043482,-20064.97821969,0.00023,2]
[312385731,1705851043494,-514.15776177,0.00023,2]
[312385732,1705851043533,-4896.96814196,0.00023,2]
[312385733,1705851043545,-1282.94182292,0.00023,2]
[312385734,1705851043563,-2945.30622556,0.00023,2]
[312385735,1705851043574,-1301.69253816,0.00023,2]
[312385814,1705851045869,-2065.92487895,0.00019998,2]
[312385816,1705851045881,-1269.51983804,0.00019998,2]
[312385818,1705851045983,-1560.41671247,0.00019998,2]
[312385819,1705851045995,-344.50000044,0.00019998,2]
[312385830,1705851046703,-892.9623729,0.00019998,2]
[312385831,1705851046722,-1878.84,0.00019998,2]
[312385832,1705851046734,-359.76907127,0.00019998,2]
[312385833,1705851046746,-1092.74793216,0.00019998,2]
[312385834,1705851046757,-516.20988609,0.00019998,2]
[312385835,1705851046812,-496.28,0.00019998,2]
[312385836,1705851046824,-7052.75000002,0.00019998,2]
[312385837,1705851046836,-725.19206202,0.00019998,2]
[312385838,1705851047105,-8308.80254341,0.00019998,2]
[312385839,1705851047115,-340.01072623,0.000229,2]
[312385840,1705851047128,-16557.18673058,0.00023,2]
[312385841,1705851082560,3921.0,0.00036345,30]
[312385842,1705851182876,609.0,0.00036345,30]
[312385843,1705851356881,500.0,0.00036278,30]
[312385844,1705851386994,250.0,0.00036278,30]
[312385845,1705851396593,250.0,0.00036278,30]
[312385847,1705851539450,165.18,0.00017123,2]
[312385848,1705851658453,322.02,0.00019285,2]
[312385850,1705851809398,-516.83340516,0.00020875,2]
[312385851,1705851809419,-279.32271034,0.00020875,2]
[312385852,1705851809440,-220.32604413,0.00020876,2]
[312385874,1705852082760,168.18708777,0.00019122,2]
[312385875,1705852082786,160.66291223,0.00019122,2]
[312385914,1705852232005,-525.18315791,0.00020843,2]
[312385915,1705852232014,-79.81684209,0.00020844,2]
[312385916,1705852232026,-421.92446258,0.00020844,2]
[312385917,1705852232036,-2.37553742,0.00020844,2]
[312385918,1705852232227,-626.90432124,0.00020844,2]
[312385919,1705852232237,-12.39041689,0.00020845,2]
[312385920,1705852232248,-374.81188408,0.00020845,2]
[312385921,1705852232258,-247.24074097,0.00020845,2]
[312385922,1705852232269,-525.5050377,0.00020846,2]
[312385923,1705852232280,-1066.28532123,0.00020847,2]
[312385924,1705852232295,-296.74616602,0.00020847,2]
[312385925,1705852232695,-1765.07288975,0.00020847,2]
[312385926,1705852232707,-1362.3833946,0.00020847,2]
[312385927,1705852232716,-3679.30863627,0.00020847,4]
[312385928,1705852232726,-150.0,0.00020856,2]
[312385929,1705852232735,-175.76659459,0.0002088,2]
[312385930,1705852232745,-520.0,0.00020893,2]
[312385931,1705852232754,-3177.19,0.00020918,2]
[312385932,1705852232763,-500.0,0.00020951,2]
[312385933,1705852232773,-2000.0,0.00020951,2]
[312385934,1705852232783,-730.27233577,0.00021,2]
[312385935,1705852232792,-1193.41,0.00021029,2]
[312385936,1705852232802,-499.99,0.00021029,2]
[312385937,1705852232811,-893.96,0.0002105,2]
[312385938,1705852232820,-1852.42,0.00021053,2]
[312385939,1705852232830,-1287.21,0.00021072,2]
[312385940,1705852232839,-480.0,0.00021076,2]
[312385941,1705852232849,-500.0,0.00021091,2]
[312385942,1705852232858,-750.0,0.00021104,2]
[312385943,1705852232867,-687.69,0.00021104,2]
[312385944,1705852232877,-1159.79,0.00021119,2]
[312385945,1705852232887,-500.0,0.0002112,2]
[312385946,1705852232896,-3191.26397536,0.0002114,2]
[312385947,1705852232906,-1218.32722484,0.00021159,2]
[312385948,1705852232915,-23900.0,0.0002116,2]
[312385949,1705852232924,-250.0,0.00021163,2]
[312385950,1705852232937,-154.69,0.00021227,2]
[312385951,1705852232946,-152.87,0.0002125,2]
[312385952,1705852232957,-154.69,0.00021288,2]
[312385953,1705852232967,-157.31,0.00021342,2]
[312385954,1705852232977,-154.69,0.00021348,2]
[312385955,1705852232987,-328.85,0.00021386,2]
[312385956,1705852232997,-154.69,0.00021409,2]
[312385957,1705852233006,-154.69,0.0002147,2]
[312385958,1705852233017,-169.2,0.00021477,2]
[312385959,1705852233026,-154.69,0.0002153,2]
[312385960,1705852233037,-154.69,0.00021591,2]
[312385961,1705852233046,-205.0,0.00021598,2]
[312385962,1705852233056,-465.62,0.00021644,2]
[312385963,1705852233065,-154.69,0.00021652,2]
[312385964,1705852233074,-164.89,0.00021703,2]
[312385965,1705852233083,-157.27,0.00021794,2]
[312385966,1705852233092,-392.31,0.00021794,2]
[312385967,1705852233102,-378.54,0.00021799,2]
[312385968,1705852233111,-286.69940733,0.00021801,2]
[312385969,1705852233120,-2000.0,0.00021801,2]
[312385970,1705852233129,-1986.99848638,0.00021847,2]
[312385971,1705852233138,-250.0,0.000219,2]
[312385972,1705852233147,-250.0,0.00021918,2]
[312385973,1705852233157,-1250.0,0.00022,3]
[312385974,1705852233166,-243.46550004,0.00022021,2]
[312385975,1705852233175,-509.47844138,0.00022021,2]
[312385976,1705852233185,-1024.71134146,0.00022021,2]
[312385977,1705852233194,-1043.85714201,0.00022021,2]
[312385978,1705852233203,-486.83407481,0.00022021,2]
[312385979,1705852233213,-155.0,0.00022021,2]
[312385980,1705852233222,-438.69123156,0.00022021,2]
[312385981,1705852233231,-408.84,0.00022021,2]
[312385982,1705852233240,-696.42562311,0.00022021,2]
[312385983,1705852233250,-1050.80754485,0.00022021,2]
[312385984,1705852233259,-515.9916035,0.00022021,2]
[312385985,1705852233269,-1857.92137233,0.00022022,2]
[312385986,1705852233279,-4348.54315526,0.00022022,2]
[312385987,1705852233289,-1369.64130724,0.00022022,2]
[312385988,1705852233301,-419.43600866,0.00022022,2]
[312385989,1705852233310,-1318.85285643,0.00022022,2]
[312385990,1705852233319,-348.82460716,0.00022022,2]
[312385991,1705852233329,-282.74871414,0.00022077,2]
[312385992,1705852233339,-622.17405158,0.00022078,2]
[312385993,1705852233348,-237.5683217,0.0002229,3]
[312385994,1705852233360,-986.89395439,0.0002229,2]
[312385995,1705852233369,-465.62,0.00022445,2]
[312385996,1705852233379,-151.16,0.0002249,2]
[312385997,1705852233388,-151.16,0.00022535,2]
[312385998,1705852233398,-151.16,0.0002258,2]
[312385999,1705852233407,-1327.55959257,0.0002258,2]
[312386000,1705852233417,-151.16,0.00022625,2]
[312386001,1705852233427,-151.16,0.0002267,2]
[312386002,1705852233437,-54007.8235,0.00022697,2]
[312386003,1705852233447,-1011.6109,0.000227,2]
[312386004,1705852233456,-151.16,0.00022715,2]
[312386005,1705852233466,-1287.21,0.00022715,2]
[312386006,1705852233476,-151.16,0.0002276,2]
[312386007,1705852233485,-679.2823,0.00022797,2]
[312386008,1705852233495,-986.89395438,0.00022797,2]
[312386009,1705852233505,-320.9909,0.00022797,2]
[312386010,1705852233514,-1933.4344,0.00022797,2]
[312386011,1705852233524,-19740.22314366,0.000228,2]
[312386012,1705852233534,-151.16,0.00022805,2]
[312386013,1705852233543,-157.27,0.00022819,2]
[312386014,1705852233553,-151.16,0.0002285,2]
[312386015,1705852233562,-175.76659458,0.00022886,2]
[312386016,1705852233571,-151.16,0.00022895,2]
[312386017,1705852233580,-27735.63451823,0.00022897,2]
[312386018,1705852233610,-594.47481978,0.00022897,2]
[312386019,1705852233650,-770.0,0.00022897,2]
[312386020,1705852233661,-1554.26202419,0.00022897,2]
[312386021,1705852233674,-1000.0,0.00022897,2]
[312386022,1705852233685,-2470.0,0.00022897,2]
[312386023,1705852233702,-16070.6136378,0.00022897,2]
[312386024,1705852233713,-2181.525,0.00022897,2]
[312386025,1705852233723,-1000.0,0.00022899,2]
[312386026,1705852233732,-3563.667,0.00022899,2]
[312386027,1705852233742,-455.92194564,0.000229,2]
[312386028,1705852233751,-219.45831113,0.000229,2]
[312386029,1705852233760,-219.45831113,0.000229,2]
[312386030,1705852233769,-438.91662219,0.000229,2]
[312386031,1705852233778,-5000.0,0.000229,2]
[312386032,1705852233789,-151.0537247,0.000229,2]
[312386033,1705852233798,-179.7478753,0.000229,4]
[312386034,1705852233808,-4671.28419001,0.000229,2]
[312386035,1705852233817,-151.39793635,0.000229,2]
[312386036,1705852233826,-151.16,0.0002294,2]
[312386037,1705852233837,-477.80126657,0.00022996,3]
[312386038,1705852233847,-330.20277856,0.00022996,3]
[312386039,1705852233858,-1852.93487008,0.00022996,2]
[312386040,1705852233868,-1812.46036172,0.00022996,2]
[312386041,1705852233877,-286.73899009,0.00022996,2]
[312386042,1705852233888,-404.41410196,0.00022996,2]
[312386043,1705852233897,-1061.16567652,0.00022997,2]
[312386044,1705852233908,-523.93151368,0.00022997,2]
[312386045,1705852233919,-867.3574407,0.00022997,2]
[312386046,1705852233928,-5104.76128366,0.00022997,2]
[312386097,1705852238076,-2049.91272012,0.00022997,2]
[312386098,1705852238085,-400.0,0.00022997,2]
[312386099,1705852238095,-1708.99723739,0.00022997,2]
[312386100,1705852238105,-2946.32890378,0.00022997,2]
[312386101,1705852238114,-2611.25461852,0.00022997,2]
[312386102,1705852238126,-457.82689836,0.00022997,2]
[312386103,1705852238137,-16455.23416993,0.00022997,2]
[312386104,1705852238146,-361.8105944,0.00022998,2]
[312386105,1705852238157,-3145.34192243,0.00022998,2]
[312386106,1705852238167,-337.71417156,0.00022998,2]
[312386107,1705852238178,-940.81377552,0.00022998,2]
[312386108,1705852238189,-3030.69265764,0.00022998,2]
[312386109,1705852238200,-651.76209495,0.00022998,2]
[312386110,1705852238210,-967.0016489,0.00022998,2]
[312386111,1705852238220,-2583.49843841,0.00022998,2]
[312386112,1705852238233,-605.356598,0.00022998,2]
[312386113,1705852238254,-863.56873737,0.00022998,2]
[312386114,1705852238266,-3733.25123057,0.00022998,2]
[312386115,1705852238275,-265.56171591,0.00022998,2]
[312386116,1705852238284,-376.99778684,0.00022998,2]
[312386117,1705852238294,-1252.56437572,0.00022998,2]
[312386118,1705852238307,-2368.07523417,0.00022998,2]
[312386119,1705852238316,-302.87576003,0.00022999,3]
[312386120,1705852238325,-2902.60645691,0.00022999,2]
[312386121,1705852238335,-766.87003814,0.00022999,2]
[312386122,1705852238344,-35965.32631617,0.00022999,2]
[312386123,1705852238434,-1863.2359389,0.00022999,2]
[312386125,1705852238445,-307.60963438,0.00022999,2]
[312386131,1705852238495,-465.55918947,0.00022999,2]
[312386139,1705852238561,-91226.43576899,0.00022999,2]
[312386141,1705852238571,-300.0,0.00022999,2]
[312386143,1705852238580,-300.0,0.00022999,2]
[312386145,1705852238589,-300.0,0.00022999,2]
[312386147,1705852238598,-300.0,0.00022999,2]
[312386149,1705852238607,-300.0,0.00022999,2]
[312386151,1705852238616,-300.0,0.00022999,2]
[312386153,1705852238625,-300.0,0.00022999,2]
[312386155,1705852238635,-324.79163949,0.00022999,2]
[312386157,1705852238644,-500.0,0.00022999,2]
[312386159,1705852238653,-1246890.28811668,0.00023,2]
[312386161,1705852238662,-1500.0,0.00023,2]
[312386163,1705852238672,-1500.0,0.00023,2]
[312386165,1705852238680,-1500.0,0.00023,2]
[312386167,1705852238689,-1442.62,0.00023,2]
[312386169,1705852238698,-500.0,0.00023103,2]
[312386171,1705852238708,-156.77,0.00023116,2]
[312386173,1705852238717,-159.28,0.00023125,2]
[312386175,1705852238726,-3655.3398929,0.0002313,2]
[312386177,1705852238735,-150.27,0.00023157,2]
[312386179,1705852238744,-229.59242719,0.00023231,2]
[312386181,1705852238753,-2306.08575957,0.00023231,2]
[312386183,1705852238763,-642.01750535,0.00023232,2]
[312386185,1705852238771,-2142.12617352,0.00023232,2]
[312386187,1705852238780,-950.52621198,0.00023232,2]
[312386189,1705852238790,-1327.55959257,0.00023235,2]
[312386191,1705852238798,-465.62,0.00023245,2]
[312386193,1705852238808,-520.0,0.00023504,2]
[312386195,1705852238817,-500.0,0.00023547,2]
[312386197,1705852238826,-328.85,0.0002365,2]
[312386199,1705852238835,-480.0,0.00023711,2]
[312386201,1705852238844,-151.05372464,0.00023813,2]
[312386203,1705852238853,-157.27,0.00023844,2]
[312386205,1705852238862,-155.6862248,0.00024,2]
[312386207,1705852238871,-5000.0,0.00024,2]
[312386209,1705852238880,-1300.0,0.00024,3]
[312386211,1705852238889,-465.62,0.00024046,2]
[312386213,1705852238898,-500.0,0.00024095,2]
[312386215,1705852238907,-299.999999,0.000241,2]
[312386217,1705852238916,-800.0,0.00024274,2]
[312386219,1705852238926,-1287.21,0.00024359,2]
[312386221,1705852238936,-4671.28418992,0.00024445,2]
[312386240,1705852239126,-500.0,0.00024643,2]
[312386242,1705852239136,-250.0,0.00024658,2]
[312386244,1705852239145,-150.0,0.00024658,2]
[312386246,1705852239154,-150.0,0.00024658,2]
[312386248,1705852239164,-150.0,0.00024658,2]
[312386250,1705852239173,-150.0,0.00024658,2]
[312386252,1705852239182,-150.0,0.00024658,2]
[312386255,1705852239194,-150.0,0.00024658,2]
[312386257,1705852239204,-150.0,0.00024658,2]
[312386258,1705852239213,-150.0,0.00024658,2]
[312386260,1705852239223,-150.0,0.00024658,2]
[312386262,1705852239233,-150.0,0.00024658,2]
[312386264,1705852239244,-150.0,0.00024658,2]
[312386267,1705852239254,-150.0,0.00024658,2]
[312386269,1705852239263,-150.0,0.00024658,2]
[312386271,1705852239273,-150.0,0.00024658,2]
[312386272,1705852239282,-150.0,0.00024658,2]
[312386274,1705852239291,-150.0,0.00024658,2]
[312386276,1705852239300,-150.0,0.00024658,2]
[312386278,1705852239309,-150.0,0.00024658,2]
[312386280,1705852239318,-150.0,0.00024658,2]
[312386282,1705852239328,-153.65189727,0.00024658,2]
[312386284,1705852239337,-156.77,0.00024751,2]
[312386286,1705852239346,-151.05372464,0.00024827,2]
[312386288,1705852239355,-465.62,0.00024847,2]
[312386290,1705852239364,-157.27,0.00024869,2]
[312386292,1705852239373,-175.76659458,0.00024892,2]
[312386294,1705852239382,-457.96849023,0.00025,2]
[312386296,1705852239391,-32394.0,0.00025,2]
[312386298,1705852239400,-3391.0,0.00025,2]
[312386300,1705852239409,-205.0,0.00025089,7]
[312386302,1705852239419,-500.0,0.00025191,2]
[312386304,1705852239428,-455.9219456,0.00025329,2]
[312386306,1705852239437,-219.45831107,0.00025329,2]
[312386307,1705852239446,-219.45831106,0.00025329,2]
[312386309,1705852239456,-438.91662213,0.00025329,2]
[312386311,1705852239466,-157.31,0.00025357,2]
[312386313,1705852239475,-152.87,0.00025501,2]
[312386315,1705852239485,-500.0,0.00025739,2]
[312386317,1705852239494,-151.05372464,0.0002584,2]
[312386319,1705852239503,-157.27,0.00025893,2]
[312386321,1705852239513,-328.85,0.00025914,2]
[312386323,1705852239522,-4671.28418992,0.00025991,2]
[312386325,1705852239531,-1350.0,0.00026,3]
[312386327,1705852239541,-1287.21,0.00026003,2]
[312386329,1705852239550,-1127.141,0.00026009,2]
[312386331,1705852239559,-340.594,0.00026009,2]
[312386333,1705852239569,-319.0,0.00026009,2]
[312386335,1705852239578,-1054.249,0.00026009,2]
[312386337,1705852239587,-520.0,0.00026116,2]
[312386339,1705852239596,-480.0,0.00026346,2]
[312386341,1705852239605,-156.77,0.00026386,2]
[312386343,1705852239615,-7221.92,0.00026575,2]
[312386345,1705852239624,-1444.4,0.00026575,2]
[312386347,1705852239633,-151.05372464,0.00026854,2]
[312386349,1705852239643,-175.76659458,0.00026897,2]
[312386351,1705852239652,-578.0,0.0002733,2]
[312386353,1705852239661,-1000.0,0.00027397,2]
[312386355,1705852239670,-4671.28418992,0.00027536,2]
[312386357,1705852239679,-1287.21,0.00027647,2]
[312386359,1705852239688,-455.9219456,0.00027757,3]
[312386361,1705852239697,-219.45831107,0.00027757,3]
[312386363,1705852239706,-219.45831106,0.00027757,3]
[312386365,1705852239716,-438.91662213,0.00027757,3]
[312386367,1705852239725,-151.05372464,0.00027868,2]
[312386369,1705852239735,-283.29725935,0.00027999,2]
[312386371,1705852239744,-689.17349675,0.00028,2]
[312386373,1705852239753,-1400.0,0.00028,3]
[312386375,1705852239762,-156.77,0.00028021,2]
[312386377,1705852239772,-328.85,0.00028178,2]
[312386379,1705852239781,-205.0,0.0002858,12]